bitfinex/quotes_SOLUSD_20250930
["timestamp","ask_amount","ask_price","bid_price","bid_amount"]
[1759271007511,7.13710623,209.96,209.95,70.74]
[1759271007695,21.44018854,209.96,209.95,70.74]
[1759271008093,7.13710623,209.96,209.95,70.74]
[1759271008395,7.13710623,209.96,209.95,71.43]
[1759271009115,23.17429427,209.96,209.95,71.43]
[1759271009280,20.8,209.96,209.95,71.43]
[1759271010394,25.56259437,209.97,209.95,71.43]
[1759271010608,20.8,209.97,209.96,0.69]
[1759271011316,25.56258513,209.97,209.96,0.69]
[1759271011909,20.8,209.97,209.96,0.69]
[1759271013927,20.8,209.98,209.96,0.69]
[1759271014102,20.8,209.98,209.97,33.5]
[1759271015022,7.13651184,209.99,209.97,33.5]
[1759271016524,7.13651184,209.99,209.95,37.24]
[1759271016525,25.56281196,209.96,209.95,37.24]
[1759271016710,27.93710623,209.96,209.95,70.74]
[1759271017710,20.8,209.96,209.95,70.74]
[1759271024449,20.8,209.98,209.95,71.43]
[1759271024614,16.67260468,210.03,209.96,0.69]
[1759271024818,16.67260468,210.03,209.97,33.5]
[1759271025018,20.8,210.0,209.98,0.69]
[1759271025224,19.8262139,210.06,209.99,33.5]
[1759271025537,20.8,210.04,210.0,0.69]
[1759271025741,20.8,210.03,210.01,33.5]
[1759271025932,7.13508799,210.05,210.01,33.5]
[1759271026127,7.80508799,210.05,210.01,33.5]
[1759271026540,20.8,210.04,210.01,33.5]
[1759271027422,23.17429427,210.04,210.01,33.5]
[1759271027622,23.17429427,210.04,210.01,34.19]
[1759271027942,20.8,210.04,210.01,34.19]
[1759271028570,20.8,210.04,210.02,0.69]
[1759271028741,20.8,210.06,210.03,33.5]
[1759271028944,20.8,210.06,210.04,33.5]
[1759271029938,2.37429427,210.09,210.05,0.69]
[1759271030130,20.8,210.07,210.06,33.5]
[1759271030935,2.37429427,210.08,210.06,33.5]
[1759271031127,2.37429427,210.08,210.04,0.69]
[1759271031328,2.37429427,210.08,210.05,33.5]
[1759271031524,0.67,210.08,210.05,33.5]
[1759271033023,20.8,210.07,210.06,0.67]
[1759271033326,19.73246295,210.11,210.07,0.67]
[1759271033327,20.8,210.08,210.07,0.67]
[1759271033534,20.8,210.08,210.05,34.17]
[1759271034435,6.95956847,210.07,210.01,0.67]
[1759271034642,6.95956847,210.07,210.02,33.48]
[1759271034843,6.95956847,210.07,210.02,34.15]
[1759271036249,6.95956847,210.07,210.03,33.48]
[1759271036450,5.44031798,210.07,210.03,33.48]
[1759271037227,20.8,210.09,210.04,0.67]
[1759271038034,25.55991282,210.09,210.05,0.67]
[1759271038344,20.8,210.07,210.06,33.48]
[1759271038649,20.8,210.07,210.06,34.15]
[1759271038948,20.8,210.08,210.06,34.15]
[1759271040247,20.8,210.09,210.06,112.58]
[1759271040444,20.8,210.09,210.07,0.67]
[1759271041641,1.51925049,210.13,210.06,112.58]
[1759271041642,20.8,210.1,210.08,0.67]
[1759271041840,20.8,210.1,210.09,33.48]
[1759271043529,22.99925049,210.1,210.09,33.48]
[1759271044545,39.65798441,210.1,210.05,79.1]
[1759271044852,1.51925049,210.08,210.06,33.48]
[1759271045049,2.19925049,210.09,210.06,33.48]
[1759271045235,0.68,210.08,210.06,33.48]
[1759271046126,27.07888875,210.1,210.06,33.48]
[1759271046326,20.8,210.1,210.06,34.15]
[1759271046532,20.8,210.1,210.07,0.67]
[1759271046849,20.8,210.1,210.08,0.67]
[1759271047030,20.8,210.11,210.09,34.15]
[1759271047229,20.8,210.11,210.1,33.48]
[1759271048046,5.43875344,210.14,210.1,33.48]
[1759271048649,14.28945676,210.17,210.11,0.67]
[1759271048841,4.75801773,210.18,210.11,0.67]
[1759271049033,5.43761579,210.19,210.11,0.67]
[1759271049450,20.8,210.16,210.11,0.67]
[1759271049733,20.8,210.16,210.1,38.23957396]
[1759271049938,20.8,210.16,210.12,0.67]
[1759271050148,20.8,210.16,210.13,33.48]
[1759271050327,20.8,210.16,210.14,37.12]
[1759271053232,0.68,210.18,210.14,37.12]
[1759271053233,2.19925049,210.15,210.14,37.12]
[1759271053437,2.19925049,210.15,210.14,70.58]
[1759271053952,6.95775631,210.15,210.14,70.58]
[1759271055741,21.24721307,210.15,210.14,70.58]
[1759271056458,6.95775631,210.15,210.14,70.58]
[1759271060960,6.95775631,210.15,210.14,37.12]
[1759271061160,6.95775631,210.15,210.14,70.58]
[1759271071047,6.95775631,210.15,210.14,37.12]
[1759271071278,6.95775631,210.15,210.14,70.58]
[1759271074155,6.95775631,210.15,210.1,0.66]
[1759271074156,20.8,210.12,210.1,37.12]
[1759271074356,20.8,210.12,210.11,33.46]
[1759271074860,21.47,210.12,210.1,37.12]
[1759271075066,35.09286071,210.12,210.11,33.46]
[1759271075458,41.37129642,210.12,210.11,33.46]
[1759271075658,42.04129642,210.12,210.11,33.46]
[1759271078664,39.85204593,210.12,210.11,33.46]
[1759271078866,39.85204593,210.12,210.11,34.12]
[1759271079252,25.55918522,210.12,210.11,34.12]
[1759271080051,25.55918522,210.12,210.11,33.46]
[1759271080259,25.55918522,210.12,210.11,34.12]
[1759271083667,25.55918522,210.12,210.11,33.46]
[1759271084272,25.55918522,210.12,210.11,34.12]
[1759271084850,5.42918522,210.12,210.02,37.12]
[1759271085069,1.51925049,210.07,210.03,34.12]
[1759271085452,4.7605446,210.06,210.03,34.12]
[1759271085669,16.66190611,210.06,210.03,33.46]
[1759271085963,16.66190611,210.06,210.03,34.12]
[1759271086166,16.66190611,210.06,210.04,0.66]
[1759271086478,16.66190611,210.06,210.05,33.46]
[1759271087383,4.7605446,210.06,210.05,34.12]
[1759271087578,32.70016187,210.09,210.05,34.12]
[1759271087878,4.76009139,210.08,210.06,0.66]
[1759271088056,4.76009139,210.08,210.07,33.46]
[1759271088446,4.76009139,210.08,210.07,34.12]
[1759271089255,4.75974122,210.1,210.07,34.12]
[1759271089461,16.65764083,210.12,210.08,0.66]
[1759271089775,20.8,210.13,210.09,33.46]
[1759271089776,4.75899986,210.13,210.09,33.46]
[1759271089949,4.75899986,210.13,210.1,0.66]
[1759271090151,4.75899986,210.13,210.11,33.46]
[1759271090359,4.75899986,210.13,210.12,33.46]
[1759271091480,25.55899986,210.13,210.12,33.46]
[1759271094888,25.55899986,210.13,210.12,70.58]
[1759271099690,25.55899986,210.13,210.12,70.56]
[1759271102194,25.55899986,210.13,210.12,37.12]
[1759271102692,25.55899986,210.13,210.12,70.56]
[1759271103096,20.8,210.13,210.12,150.32]
[1759271103265,4.758053,210.17,210.12,71.22]
[1759271103471,0.69,210.16,210.13,33.44]
[1759271103688,0.69,210.15,210.13,33.44]
[1759271103896,0.69,210.15,210.14,33.44]
[1759271104696,17.34477039,210.15,210.12,37.12]
[1759271104872,0.69,210.14,210.13,33.44]
[1759271105070,3.06239146,210.14,210.13,33.44]
[1759271105606,20.8,210.13,210.12,37.12]
[1759271105770,20.8,210.11,210.09,37.12]
[1759271106095,3.06239146,210.1,210.09,37.12]
[1759271106280,23.86239146,210.1,210.09,37.12]
[1759271106980,28.62202972,210.1,210.09,70.56]
[1759271110775,25.55963826,210.1,210.09,71.22]
[1759271110979,25.55963826,210.1,210.09,70.56]
[1759271114002,4.75941793,210.11,210.09,71.22]
[1759271115000,4.75941793,210.11,210.09,70.56]
[1759271115676,4.75928345,210.12,210.1,0.66]
[1759271115875,4.75928345,210.12,210.11,33.44]
[1759271116695,4.75895873,210.13,210.11,33.44]
[1759271117108,3.06239146,210.12,210.09,37.12]
[1759271117300,3.06239146,210.11,210.1,33.44]
[1759271118076,3.06239146,210.11,210.09,37.12]
[1759271118282,3.05239146,210.1,210.09,37.12]
[1759271118586,3.05239146,210.1,210.09,70.56]
[1759271118587,23.85239146,210.1,210.09,70.56]
[1759271118797,28.61202972,210.1,210.09,70.56]
[1759271119381,40.51112538,210.1,210.0,0.67]
[1759271119606,2.37239146,210.05,210.0,0.67]
[1759271119807,2.37239146,210.05,210.01,0.67]
[1759271120007,3.05239146,210.06,210.01,0.67]
[1759271120579,3.05239146,210.06,210.02,33.44]
[1759271120782,4.76077124,210.05,210.02,34.11]
[1759271120979,4.76077124,210.05,210.03,0.67]
[1759271121283,4.76077124,210.05,210.04,33.44]
[1759271121794,5.44077124,210.05,210.04,33.44]
[1759271122102,19.71509081,210.05,209.99,0.67]
[1759271122305,2.37239146,210.04,210.0,33.44]
[1759271122526,3.05239146,210.04,210.0,33.44]
[1759271122895,4.76122458,210.03,210.0,34.11]
[1759271123089,4.76122458,210.03,210.0,33.44]
[1759271123295,4.76122458,210.03,210.01,33.44]
[1759271123493,4.76122458,210.03,210.02,33.44]
[1759271125317,4.76122458,210.03,210.02,70.56]
[1759271128640,4.76122458,210.03,210.02,71.27]
[1759271129121,4.76122458,210.03,210.02,70.56]
[1759271129624,16.66269935,210.05,210.02,149.66]
[1759271129802,17.32269935,210.05,210.02,149.66]
[1759271130511,4.76122458,210.03,210.02,149.66]
[1759271132153,17.32269935,210.05,210.02,149.66]
[1759271133128,17.32269935,210.05,210.03,33.44]
[1759271133439,17.32269935,210.05,210.02,116.22]
[1759271133678,16.66269935,210.05,210.03,33.44]
[1759271134317,11.90192811,210.05,210.03,33.44]
[1759271135133,12.56192811,210.05,210.03,33.44]
[1759271135333,17.32269935,210.05,210.03,33.44]
[1759271137017,16.66269935,210.05,210.03,33.44]
[1759271137220,17.32269935,210.05,210.03,33.44]
[1759271138231,16.66269935,210.05,210.03,33.44]
[1759271138565,4.76077124,210.05,210.03,34.15]
[1759271139659,4.7605446,210.06,210.03,34.15]
[1759271140453,16.66190611,210.06,210.03,33.44]
[1759271141448,16.66190611,210.06,210.03,112.54]
[1759271141746,16.66190611,210.06,210.03,113.25]
[1759271142043,16.66190611,210.06,210.03,112.54]
[1759271142244,3.03239146,210.05,210.04,33.44]
[1759271143435,7.7931627,210.05,210.04,33.44]
[1759271143948,5.42077124,210.05,210.04,33.44]
[1759271145233,4.76077124,210.05,210.04,33.44]
[1759271145426,5.42077124,210.05,210.04,33.44]
[1759271146045,20.8,210.02,210.01,37.12]
[1759271146230,23.83239146,210.02,210.01,70.56]
[1759271147129,28.59384275,210.02,210.01,70.56]
[1759271147838,25.56145129,210.02,210.01,70.56]
[1759271148028,25.56145129,210.02,210.01,71.27]
[1759271148528,25.56145129,210.02,210.01,70.56]
[1759271150235,14.93431957,210.05,210.01,70.56]
[1759271150236,11.90192811,210.05,210.01,70.56]
[1759271150436,33.36192811,210.05,210.01,71.27]
[1759271150636,4.7609979,210.04,210.02,0.71]
[1759271150839,4.7609979,210.04,210.03,34.15]
[1759271152150,16.66111295,210.07,210.03,34.15]
[1759271152351,4.76031798,210.07,210.04,0.71]
[1759271152542,4.76031798,210.07,210.05,33.44]
[1759271153945,4.76031798,210.07,210.06,0.69]
[1759271154143,4.76031798,210.07,210.05,33.44]
[1759271154344,4.76031798,210.07,210.05,34.13]
[1759271154847,4.76012661,210.08,210.05,33.44]
[1759271155156,4.76012661,210.08,210.06,0.69]
[1759271155448,4.76012661,210.08,210.07,33.44]
[1759271156354,4.75986481,210.09,210.07,33.44]
[1759271156657,5.46986481,210.09,210.07,33.44]
[1759271157253,4.75986481,210.09,210.07,33.44]
[1759271157433,5.46986481,210.09,210.07,33.44]
[1759271157756,4.75986481,210.09,210.07,33.44]
[1759271158133,16.65873392,210.1,210.07,33.44]
[1759271158328,17.36873392,210.1,210.07,33.44]
[1759271158545,0.71,210.09,210.07,33.44]
[1759271158953,16.65873392,210.1,210.07,33.44]
[1759271159257,4.76009139,210.08,210.07,112.54]
[1759271160464,16.65873392,210.1,210.07,112.54]
[1759271160765,17.36873392,210.1,210.07,112.54]
[1759271165257,17.36873392,210.1,210.08,37.12]
[1759271165461,17.36873392,210.1,210.09,33.42]
[1759271168144,16.65873392,210.1,210.09,33.42]
[1759271168349,4.75934531,210.12,210.09,0.69]
[1759271168672,0.71,210.11,210.1,33.42]
[1759271169054,5.46941173,210.11,210.1,33.42]
[1759271169370,17.36794107,210.11,210.1,33.42]
[1759271169550,18.8870841,210.11,210.08,37.12]
[1759271169749,22.31914303,210.09,210.08,37.12]
[1759271169957,23.02914303,210.09,210.08,70.54]
[1759271171362,27.78900784,210.09,210.08,70.54]
[1759271171752,25.55986481,210.09,210.08,70.54]
[1759271172543,25.55986481,210.09,210.08,71.23]
[1759271172868,25.55986481,210.09,210.08,70.54]
[1759271173967,25.55986481,210.09,210.08,37.12]
[1759271174171,26.26986481,210.09,210.08,70.54]
[1759271175670,25.55986481,210.09,210.08,70.54]
[1759271178556,25.55986481,210.09,210.08,71.26]
[1759271179678,25.55986481,210.09,210.08,70.54]
[1759271181459,25.55986481,210.09,210.08,37.12]
[1759271181781,25.55986481,210.09,210.08,70.54]
[1759271182353,26.21986481,210.09,210.08,70.54]
[1759271183166,25.55986481,210.09,210.08,70.54]
[1759271187261,26.23986481,210.09,210.08,70.54]
[1759271190876,25.55986481,210.09,210.08,70.54]
[1759271191389,26.23986481,210.09,210.08,70.54]
[1759271192391,25.55986481,210.09,210.08,70.54]
[1759271194199,25.55986481,210.09,210.08,71.25]
[1759271194401,25.55986481,210.09,210.08,70.54]
[1759271195996,25.55986481,210.09,210.08,37.12]
[1759271196170,25.55986481,210.09,210.08,70.54]
[1759271205100,25.55986481,210.09,209.61,34.32797226]
[1759271205101,63.45799397,210.09,210.07,37.12]
[1759271205272,51.7537496,210.09,210.08,33.4]
[1759271205478,38.97866988,210.09,210.07,37.12]
[1759271205887,0.68,210.08,210.07,37.12]
[1759271206087,2.19914303,210.08,210.07,37.12]
[1759271206286,21.25345717,210.08,210.07,37.12]
[1759271206701,21.25345717,210.08,210.07,70.52]
[1759271208216,20.8,210.05,209.97,4.0035737]
[1759271208383,1.51914303,210.0,209.98,37.12]
[1759271208902,2.19914303,210.0,209.98,37.12]
[1759271209413,2.19914303,210.0,209.99,33.4]
[1759271210107,6.96104779,210.0,209.99,33.4]
[1759271211690,6.96104779,210.0,209.99,33.42]
[1759271212297,6.96104779,210.0,209.99,33.4]
[1759271214485,6.28104779,210.0,209.99,33.4]
[1759271214706,6.94104779,210.0,209.99,33.4]
[1759271215699,6.94104779,210.0,209.98,37.14]
[1759271215700,42.65533349,210.0,209.98,37.14]
[1759271215902,42.65533349,210.0,209.95,0.1]
[1759271215903,0.66,209.99,209.95,0.1]
[1759271216104,20.8,209.98,209.97,37.14]
[1759271216305,21.46,209.98,209.97,37.14]
[1759271216605,35.76103682,209.98,209.97,37.14]
[1759271216998,40.52339513,209.98,209.97,70.56]
[1759271217311,42.04253816,209.98,209.97,70.56]
[1759271218610,42.04253816,209.98,209.97,37.14]
[1759271218797,39.86339513,209.98,209.97,70.56]
[1759271219113,25.56235831,209.98,209.97,70.56]
[1759271219319,27.08150134,209.98,209.97,70.56]
[1759271220187,27.9387557,209.98,209.97,70.56]
[1759271222014,25.56235831,209.98,209.97,70.56]
[1759271225216,25.56235831,209.98,209.97,71.27]
[1759271225416,25.56235831,209.98,209.97,70.56]
[1759271225791,4.76210596,210.0,209.97,71.27]
[1759271225999,4.76213153,209.99,209.97,70.56]
[1759271226813,4.76213153,209.99,209.97,71.27]
[1759271227311,4.76190476,210.0,209.97,70.56]
[1759271227501,4.76172492,210.01,209.98,0.71]
[1759271227702,4.76172492,210.01,209.99,33.42]
[1759271227907,4.76172492,210.01,210.0,0.71]
[1759271228595,4.76172492,210.01,209.99,33.42]
[1759271228824,4.76172492,210.01,209.99,34.13]
[1759271229007,4.76172492,210.01,209.99,33.42]
[1759271229204,4.76172492,210.01,210.0,0.71]
[1759271229407,16.66428604,210.03,209.99,33.42]
[1759271229613,16.66428604,210.03,209.99,34.13]
[1759271230114,19.04068343,210.03,209.99,34.13]
[1759271230307,16.66428604,210.03,209.99,34.13]
[1759271230508,16.66428604,210.03,209.99,113.23]
[1759271230696,26.28105096,210.12,210.0,0.71]
[1759271231014,14.2935417,210.09,210.01,33.42]
[1759271231261,20.8,210.09,210.02,0.71]
[1759271231524,16.65997882,210.09,210.03,33.42]
[1759271231822,20.8,210.08,210.04,0.71]
[1759271232004,20.8,210.08,210.05,34.13]
[1759271232317,20.8,210.08,210.06,33.42]
[1759271233518,4.76031798,210.07,210.06,33.42]
[1759271234095,38.12111295,210.07,210.0,0.71]
[1759271234291,2.37639739,210.06,209.98,0.71]
[1759271234491,2.37639739,210.03,209.97,37.14]
[1759271234690,20.8,210.04,209.97,37.14]
[1759271234691,2.37639739,210.01,209.97,37.14]
[1759271234890,0.66,210.0,209.97,37.14]
[1759271235125,3.03639739,210.02,209.98,33.4]
[1759271235353,16.66587304,210.01,209.98,33.4]
[1759271235957,0.66,210.0,209.98,33.4]
[1759271236330,0.66,209.99,209.97,37.14]
[1759271236533,2.37639739,210.0,209.98,33.4]
[1759271237048,0.66,210.0,209.98,33.4]
[1759271237643,0.66,209.99,209.98,33.4]
[1759271237841,5.42213153,209.99,209.98,33.4]
[1759271238337,20.8,209.98,209.97,37.14]
[1759271238536,23.84639739,209.98,209.97,70.54]
[1759271239262,4.76213153,209.99,209.97,70.54]
[1759271239553,5.43213153,209.99,209.97,70.54]
[1759271239761,4.76213153,209.99,209.97,70.54]
[1759271240142,5.43213153,209.99,209.97,70.54]
[1759271242347,7.13852892,209.99,209.97,70.54]
[1759271242653,5.43235831,209.98,209.97,70.54]
[1759271242963,4.76235831,209.98,209.97,70.54]
[1759271243358,5.48235831,209.98,209.97,70.54]
[1759271243868,4.76235831,209.98,209.97,70.54]
[1759271244744,4.76235831,209.98,209.97,71.23]
[1759271245061,4.76235831,209.98,209.97,70.54]
[1759271246365,4.76213153,209.99,209.97,70.54]
[1759271246571,5.48213153,209.99,209.97,70.54]
[1759271247158,7.85852892,209.99,209.97,70.54]
[1759271247949,5.48235831,209.98,209.97,70.54]
[1759271249159,5.48235831,209.98,209.97,37.14]
[1759271249360,5.48235831,209.98,209.97,70.54]
[1759271249664,4.76235831,209.98,209.97,70.54]
[1759271255780,4.76213153,209.99,209.97,70.54]
[1759271256156,5.48213153,209.99,209.97,70.54]
[1759271260685,4.76213153,209.99,209.98,0.69]
[1759271260984,25.56213153,209.99,209.97,70.54]
[1759271261187,25.56213153,209.99,209.97,71.23]
[1759271261366,20.8,209.98,209.97,71.23]
[1759271261878,20.8,209.98,209.97,70.54]
[1759271262081,25.56235831,209.98,209.97,70.54]
[1759271262886,25.56235831,209.98,209.97,71.23]
[1759271264690,25.56235831,209.98,209.97,70.54]
[1759271266591,4.76235831,209.98,209.97,71.23]
[1759271266784,4.76235831,209.98,209.97,70.54]
[1759271267497,4.76235831,209.98,209.97,71.23]
[1759271268167,4.76235831,209.98,209.97,70.54]
[1759271268588,4.76190476,210.0,209.97,70.54]
[1759271268787,5.48190476,210.0,209.97,70.54]
[1759271269094,17.38666666,210.0,209.97,70.54]
[1759271272997,4.76235831,209.98,209.97,70.54]
[1759271273198,5.43235831,209.98,209.97,70.54]
[1759271274005,4.76235831,209.98,209.97,70.54]
[1759271274699,4.76213153,209.99,209.97,37.14]
[1759271275005,4.76213153,209.99,209.98,33.4]
[1759271276009,4.76194481,210.0,209.98,33.4]
[1759271276192,4.76194481,210.0,209.99,0.7]
[1759271276402,4.76194481,210.0,209.98,33.4]
[1759271276605,4.76194481,210.0,209.98,34.1]
[1759271277009,4.76194481,210.0,209.98,33.4]
[1759271279707,4.76194481,210.0,209.98,34.1]
[1759271280198,4.76194481,210.0,209.99,34.1]
[1759271281112,4.76194481,210.0,209.99,33.4]
[1759271282814,4.76145129,210.02,209.99,34.1]
[1759271283016,4.76145129,210.02,210.0,0.7]
[1759271283218,4.76145129,210.02,210.01,33.4]
[1759271284017,4.76122458,210.03,210.01,33.4]
[1759271284210,5.43122458,210.03,210.01,33.4]
[1759271284825,0.67,210.02,210.01,33.4]
[1759271285021,0.67,210.02,209.97,37.14]
[1759271285226,0.67,210.01,209.98,33.38]
[1759271285924,0.67,210.0,209.98,33.38]
[1759271286302,4.76167801,210.01,209.98,33.38]
[1759271286502,5.43167801,210.01,209.98,33.38]
[1759271286805,5.43167801,210.01,209.98,112.48]
[1759271288616,4.76167801,210.01,209.99,0.7]
[1759271288815,4.76167801,210.01,210.0,33.38]
[1759271291037,17.33428604,210.03,210.0,33.38]
[1759271291333,0.67,210.02,210.0,33.38]
[1759271292841,4.76167801,210.01,210.0,112.48]
[1759271299938,4.76167801,210.01,209.97,37.86]
[1759271299939,31.48901151,210.01,209.97,37.14]
[1759271300141,2.22007701,210.0,209.98,33.38]
[1759271300450,0.7,209.99,209.98,33.38]
[1759271300631,19.7597605,209.99,209.97,37.14]
[1759271300839,19.0597605,209.99,209.98,33.38]
[1759271301146,4.76213153,209.99,209.98,33.38]
[1759271301347,19.76044194,209.99,209.98,33.38]
[1759271301928,21.28051895,209.99,209.98,33.38]
[1759271302936,33.18584777,209.99,209.95,37.24]
[1759271303258,1.52007701,209.97,209.96,33.38]
[1759271303453,2.19007701,209.97,209.96,33.38]
[1759271304239,16.49043213,209.97,209.96,33.38]
[1759271305056,4.76281196,209.96,209.95,37.24]
[1759271305250,5.43281196,209.96,209.95,70.62]
[1759271305748,19.06316708,209.96,209.95,70.62]
[1759271306052,4.76260092,209.97,209.95,71.28]
[1759271306236,4.76260092,209.97,209.95,70.62]
[1759271306554,14.29831041,209.96,209.95,70.62]
[1759271306947,19.06112237,209.96,209.95,70.62]
[1759271308256,19.73112237,209.96,209.95,70.62]
[1759271308846,19.73112237,209.96,209.95,37.24]
[1759271309250,19.73112237,209.96,209.95,70.62]
[1759271309453,21.25119938,209.96,209.95,70.62]
[1759271311060,21.25119938,209.96,209.95,37.24]
[1759271311252,21.25119938,209.96,209.95,70.62]
[1759271314857,20.58119938,209.96,209.95,70.62]
[1759271315064,19.06112237,209.96,209.95,70.62]
[1759271316148,19.73112237,209.96,209.95,70.62]
[1759271317549,21.25119938,209.96,209.95,70.62]
[1759271320373,21.25119938,209.96,209.95,37.24]
[1759271320664,21.25119938,209.96,209.95,70.6]
[1759271320864,21.25119938,209.96,209.95,37.24]
[1759271321166,21.25119938,209.96,209.95,70.6]
[1759271322167,20.58119938,209.96,209.95,70.6]
[1759271323373,21.25119938,209.96,209.95,70.6]
[1759271323757,20.58119938,209.96,209.95,70.6]
[1759271324463,21.25119938,209.96,209.95,70.6]
[1759271327153,21.25119938,209.96,209.95,37.24]
[1759271327473,21.25119938,209.96,209.95,70.6]
[1759271327872,33.15822929,209.96,209.94,37.14]
[1759271328074,33.15822929,209.96,209.87,0.66]
[1759271328075,20.8,209.93,209.87,0.66]
[1759271328259,1.52007701,209.92,209.88,70.5]
[1759271328465,16.49315932,209.92,209.88,70.5]
[1759271328908,1.52007701,209.92,209.88,37.14]
[1759271329061,4.76417341,209.9,209.89,33.36]
[1759271329661,19.06725572,209.9,209.89,33.36]
[1759271329866,19.06725572,209.9,209.88,37.14]
[1759271330067,19.06725572,209.9,209.89,33.36]
[1759271330870,4.76417341,209.9,209.89,33.36]
[1759271331076,19.06725572,209.9,209.88,37.14]
[1759271331282,19.06725572,209.9,209.89,33.36]
[1759271334160,19.77725572,209.9,209.89,33.36]
[1759271335061,19.77725572,209.9,209.88,37.14]
[1759271335062,19.06725572,209.9,209.88,37.14]
[1759271335266,19.06725572,209.9,209.89,34.05]
[1759271335469,4.76417341,209.9,209.89,34.05]
[1759271335875,19.06725572,209.9,209.89,34.05]
[1759271336179,19.06725572,209.9,209.89,33.36]
[1759271336690,19.06725572,209.9,209.89,34.05]
[1759271337583,19.06725572,209.9,209.89,33.36]
[1759271340087,19.06725572,209.9,209.88,37.83]
[1759271340287,19.06725572,209.9,209.89,33.36]
[1759271340691,16.6732777,209.92,209.89,33.36]
[1759271340875,17.3832777,209.92,209.89,33.36]
[1759271341492,14.30308231,209.9,209.89,33.36]
[1759271342080,19.06725572,209.9,209.89,33.36]
[1759271343373,19.06725572,209.9,209.89,112.46]
[1759271344292,19.77725572,209.9,209.89,112.46]
[1759271345091,19.06725572,209.9,209.89,112.46]
[1759271345673,19.77725572,209.9,209.89,112.46]
[1759271346387,19.06725572,209.9,209.89,112.46]
[1759271349295,19.06725572,209.9,209.89,33.36]
[1759271352289,19.77725572,209.9,209.89,33.36]
[1759271352990,19.06725572,209.9,209.89,33.36]
[1759271353498,19.77725572,209.9,209.89,33.34]
[1759271353696,19.06725572,209.9,209.89,33.34]
[1759271354982,19.77725572,209.9,209.89,33.34]
[1759271355584,22.15495263,209.9,209.88,37.14]
[1759271355776,20.8,209.87,209.86,37.16]
[1759271355981,23.17769691,209.87,209.86,37.16]
[1759271356298,23.88769691,209.87,209.86,37.16]
[1759271356800,38.1955543,209.87,209.86,37.16]
[1759271356982,4.76508148,209.86,209.84,0.1]
[1759271357295,4.76508148,209.86,209.85,33.34]
[1759271357501,5.47508148,209.86,209.85,33.34]
[1759271357888,19.78362129,209.86,209.84,0.1]
[1759271358287,5.47508148,209.86,209.84,0.1]
[1759271358612,16.6869192,209.85,209.84,0.1]
[1759271358999,21.45222775,209.85,209.84,33.44]
[1759271359303,22.15222775,209.85,209.83,37.26]
[1759271359489,3.07769691,209.84,209.83,37.26]
[1759271360413,38.18760174,209.84,209.83,37.26]
[1759271360709,38.18760174,209.84,209.83,70.6]
[1759271361203,42.95313738,209.84,209.83,70.6]
[1759271361508,42.95313738,209.84,209.83,37.26]
[1759271361804,42.95313738,209.84,209.79,0.1]
[1759271361805,54.86697649,209.84,209.79,0.1]
[1759271362003,2.37769691,209.8,209.79,79.2]
[1759271362587,16.68828435,209.8,209.79,79.2]
[1759271362905,14.31058744,209.8,209.79,78.7]